bitfinex-derivatives/quotes_ETHF0:USTF0_20250906
["timestamp","ask_amount","ask_price","bid_price","bid_amount"]
[1757117198026,0.78117938,4309.1,4309.0,0.8198]
[1757117198225,0.99197938,4309.1,4309.0,0.8198]
[1757117198834,1.28507938,4309.1,4309.0,0.2914]
[1757117199423,1.28507938,4309.1,4309.0,1.168]
[1757117200836,1.28507938,4309.1,4309.0,1.3806]
[1757117201036,1.28507938,4309.1,4309.0,1.6964]
[1757117204231,0.99197938,4309.1,4309.0,1.6964]
[1757117206233,0.58527938,4309.1,4309.0,1.6964]
[1757117209733,0.58527938,4309.1,4309.0,7.0674]
[1757117211136,0.58527938,4309.1,4309.0,7.3024]
[1757117212040,0.58527938,4309.1,4309.0,1.9314]
[1757117216846,3.2078,4309.7,4309.0,1.9314]
[1757117217053,0.58427558,4309.6,4309.5,0.8333]
[1757117217342,0.58427558,4309.6,4309.5,1.0683]
[1757117218138,0.77737558,4309.6,4309.5,1.0683]
[1757117218943,0.97427558,4309.6,4309.5,1.0683]
[1757117221841,1.27697558,4309.6,4309.5,0.235]
[1757117222040,1.27697558,4309.6,4309.5,0.5352]
[1757117223246,1.27697558,4309.6,4309.5,0.7323]
[1757117224247,1.27697558,4309.6,4309.5,0.8601]
[1757117224848,1.27697558,4309.6,4309.5,1.0683]
[1757117225042,1.27697558,4309.6,4309.5,0.235]
[1757117225238,1.27697558,4309.6,4309.1,0.234]
[1757117225438,0.6927,4309.3,4309.2,0.3002]
[1757117225639,1.27697558,4309.3,4309.2,0.4973]
[1757117226347,0.97427558,4309.3,4309.2,0.7055]
[1757117227054,0.39,4309.3,4309.2,1.5392]
[1757117227240,0.77692294,4309.3,4309.2,1.5392]
[1757117227556,0.58382294,4309.3,4309.2,1.5392]
[1757117230555,0.58382294,4309.3,4309.2,6.9102]
[1757117231258,1.27652294,4309.3,4309.2,6.9102]
[1757117232658,0.97382294,4309.3,4309.2,6.9102]
[1757117233955,0.97382294,4309.3,4309.2,8.11351811]
[1757117234862,0.77692294,4309.3,4309.2,8.11351811]
[1757117235267,0.77692294,4309.3,4309.2,6.2047]
[1757117235268,1.27652294,4309.3,4309.2,6.2047]
[1757117235462,4.48432294,4309.3,4309.2,6.2047]
[1757117235964,3.79162294,4309.3,4309.2,6.9102]
[1757117236368,3.79162294,4309.3,4309.2,1.5392]
[1757117237980,3.79162294,4309.3,4309.2,1.7732]
[1757117242375,3.79162294,4309.3,4309.2,7.1442]
[1757117242575,0.501,4310.4,4310.3,0.2031]
[1757117242776,0.1995,4309.7,4309.6,0.6385]
[1757117243075,0.397,4309.7,4309.6,0.6385]
[1757117243578,0.397,4309.7,4309.6,0.9483]
[1757117243778,0.6985,4309.7,4309.6,0.9483]
[1757117245273,0.397,4309.7,4309.6,0.9483]
[1757117245578,0.1995,4310.3,4310.2,0.7143]
[1757117245778,0.397,4310.3,4310.2,0.7143]
[1757117246171,0.9317,4310.3,4309.9,0.234]
[1757117246379,0.2324,4310.1,4310.0,0.3098]
[1757117246568,0.9317,4310.1,4310.0,0.5129]
[1757117247278,0.9317,4310.1,4310.0,1.4967]
[1757117247667,4.9317,4310.1,4310.0,0.6815]
[1757117247870,5.16372,4310.1,4310.0,0.6815]
[1757117248274,1.16372,4310.1,4310.0,0.9913]
[1757117248678,0.9317,4310.1,4309.7,0.3098]
[1757117248881,3.2078,4309.9,4309.5,0.1197]
[1757117249078,3.2078,4309.9,4309.7,0.3098]
[1757117249277,3.2078,4309.9,4309.6,0.3098]
[1757117249478,3.2078,4309.9,4309.6,0.2031]
[1757117249677,3.4418,4309.9,4309.8,0.5129]
[1757117249980,3.2078,4309.9,4309.8,0.5129]
[1757117250367,3.2078,4309.9,4309.2,0.3098]
[1757117250572,3.2078,4309.4,4309.1,0.3098]
[1757117251280,3.2078,4309.4,4309.3,0.5129]
[1757117254684,3.78646737,4309.4,4309.3,0.5129]
[1757117259288,4.02046737,4309.4,4309.3,0.5129]
[1757117259583,4.02046737,4309.4,4309.3,0.3098]
[1757117259788,4.02046737,4309.4,4309.1,0.3098]
[1757117260089,0.57866737,4309.3,4309.0,0.1197]
[1757117260490,0.234,4309.2,4309.1,0.3098]
[1757117260787,0.81266737,4309.2,4309.1,0.3098]
[1757117264590,0.57866737,4309.2,4309.1,0.7143]
[1757117264886,0.57866737,4309.2,4309.1,1.91761811]
[1757117265999,0.57866737,4309.2,4309.1,7.28861811]
[1757117266291,0.204,4309.7,4309.6,0.4045]
[1757117266489,0.204,4309.7,4309.6,1.91761811]
[1757117266689,0.78238477,4309.7,4309.6,1.91761811]
[1757117267196,0.57838477,4309.7,4309.6,1.91761811]
[1757117271484,0.57838477,4309.7,4309.6,1.7473305]
[1757117271684,0.234,4310.0,4309.6,1.7473305]
[1757117271889,0.57834821,4309.9,4309.7,0.3161]
[1757117272194,0.57834821,4309.8,4309.7,0.7362]
[1757117284407,0.57834821,4309.8,4309.7,0.5222]
[1757117286408,0.57834821,4309.8,4309.5,1.03]
[1757117286606,3.2078,4309.6,4309.5,1.3461]
[1757117286808,3.78614821,4309.6,4309.5,1.7662]
[1757117292115,3.2078,4309.6,4309.5,1.7662]
[1757117292314,3.7872078,4309.6,4309.5,1.7662]
[1757117294520,0.5794078,4309.6,4309.5,2.0002]
[1757117295417,0.5794078,4309.6,4309.5,3.0332305]
[1757117296607,0.5794078,4309.6,4309.5,2.0002]
[1757117296815,0.5794078,4309.6,4309.5,3.0332305]
[1757117306026,0.5794078,4309.6,4309.5,1.5801]
[1757117306529,0.5794078,4309.6,4309.5,2.6131305]
[1757117307229,0.5794078,4309.6,4309.5,2.8141305]
[1757117307828,0.5794078,4309.6,4309.5,2.6131305]
[1757117308230,0.5794078,4309.6,4309.5,2.8141305]
[1757117310232,50.5794078,4309.6,4309.5,2.8141305]
[1757117310735,50.5794078,4309.6,4309.5,3.0173305]
[1757117313637,50.5794078,4309.6,4309.5,1.3461]
[1757117313837,53.7872078,4309.6,4309.5,1.3461]
[1757117315140,53.78832291,4309.6,4309.5,1.3461]
[1757117316337,53.78832291,4309.6,4309.5,1.2264]
[1757117317343,53.78832291,4309.6,4309.5,1.3428]
[1757117322840,53.78832291,4309.6,4309.5,0.9103]
[1757117325242,53.78832291,4309.6,4309.5,1.2162]
[1757117326543,53.78832291,4309.6,4309.5,1.3326]
[1757117327147,53.78832291,4309.6,4309.5,0.4223]
[1757117331951,53.78832291,4309.6,4309.5,0.3059]
[1757117332545,53.78832291,4309.6,4309.4,0.7659]
[1757117332745,0.81452291,4309.5,4309.4,1.0842]
[1757117339454,0.81452291,4309.5,4309.4,1.2897]
[1757117340661,0.81452291,4309.5,4309.4,1.0842]
[1757117342255,0.81452291,4309.5,4309.4,1.2897]
[1757117346163,0.81452291,4309.5,4309.4,1.4906]
[1757117346664,0.81452291,4309.5,4309.4,0.7659]
[1757117346665,5.04657291,4309.5,4309.4,0.7659]
[1757117347959,0.7659,4309.4,4308.0,0.1197]
[1757117348263,3.2078,4308.6,4308.5,0.8435]
[1757117348561,4.02232291,4308.6,4308.5,0.8435]
[1757117354061,4.02232291,4308.6,4308.5,0.6426]
[1757117356267,4.02232291,4308.6,4308.5,0.4371]
[1757117357773,4.02232291,4308.6,4308.5,0.6426]
[1757117360764,4.02232291,4308.6,4308.2,0.3106]
[1757117360966,1.78409513,4308.5,4308.2,0.3106]
[1757117361167,0.81452291,4308.4,4308.2,0.3106]
[1757117361375,0.58052291,4308.3,4308.2,0.3106]
[1757117362875,4.58052291,4308.3,4308.1,1.0881]
[1757117363075,0.81452291,4308.2,4308.1,1.0881]
[1757117363375,0.81452291,4308.2,4307.6,0.3106]
[1757117363567,3.2078,4307.7,4307.6,0.7051]
[1757117363768,4.02232291,4307.7,4307.6,0.7051]
[1757117365982,4.01807942,4307.7,4307.6,0.7051]
[1757117376385,3.78407942,4307.7,4307.6,0.7051]
[1757117376687,4.01807942,4307.7,4307.6,0.7051]
[1757117380387,4.01807942,4307.7,4307.3,0.7542]
[1757117380388,5.45380164,4307.7,4307.3,0.7542]
[1757117380579,0.57627942,4307.6,4307.3,1.0648]
[1757117380786,0.234,4307.5,4307.4,0.3106]
[1757117380985,0.81027942,4307.5,4307.4,0.3106]
[1757117381496,0.81027942,4307.5,4307.4,0.5097]
[1757117381795,0.57627942,4307.5,4307.4,0.5097]
[1757117382089,0.234,4307.5,4307.4,0.5097]
[1757117382390,0.81027942,4307.5,4307.4,0.5097]
[1757117382789,0.81027942,4307.5,4307.4,0.7051]
[1757117384081,0.57627942,4307.5,4307.4,0.7051]
[1757117393602,0.57627942,4307.5,4307.4,1.73924731]
[1757117395202,0.81027942,4307.5,4307.4,1.73924731]
[1757117401799,1.84442673,4307.5,4307.4,0.3106]
[1757117404302,1.84442673,4307.5,4307.4,0.5202]
[1757117410309,0.81027942,4307.5,4307.4,0.5202]
[1757117415415,0.81027942,4307.5,4307.4,0.3106]
[1757117415713,1.84442673,4307.5,4307.4,0.3106]
[1757117415917,1.84442673,4307.5,4307.0,0.43800001]
[1757117415918,5.84442673,4307.5,4307.0,0.43800001]
[1757117416115,4.24194731,4307.1,4307.0,0.43800001]
[1757117416313,5.05222673,4307.1,4307.0,0.43800001]
[1757117416510,5.28440673,4307.1,4306.6,0.3088]
[1757117416712,1.24714441,4306.9,4306.0,1.15734731]
[1757117416910,3.2078,4306.6,4306.0,1.15734731]
[1757117417215,4.01807942,4306.6,4306.5,0.3328]
[1757117417516,4.01807942,4306.6,4306.5,0.6416]
[1757117420817,4.01807942,4306.6,4306.5,0.432]
[1757117424520,4.02207942,4306.6,4306.5,0.432]
[1757117431028,4.01807942,4306.6,4306.1,0.7912]
[1757117431222,1.03814731,4306.2,4306.1,0.7912]
[1757117431418,1.84842673,4306.2,4306.1,0.7912]
[1757117431617,1.84842673,4306.2,4306.1,0.2934]
[1757117432414,1.84742673,4306.2,4306.0,0.4166]
[1757117432722,0.003,4305.7,4305.6,0.4939]
[1757117433021,0.81327942,4305.7,4305.6,0.4939]
[1757117434327,0.81327942,4305.7,4305.6,0.7057]
[1757117435126,0.81027942,4305.7,4305.6,0.7057]
[1757117435621,0.81177942,4305.7,4305.6,0.7057]
[1757117435924,0.81327942,4305.7,4305.6,0.7057]
[1757117448935,0.81027942,4305.7,4305.6,0.7057]
[1757117449125,0.81027942,4305.7,4305.6,4.93794999]
[1757117449324,3.2078,4306.1,4306.0,0.8347]
[1757117449532,1.24714441,4307.0,4306.0,1.55534731]
[1757117449533,0.3084,4306.7,4306.0,1.55534731]
[1757117449733,0.3084,4306.7,4306.6,1.03414731]
[1757117452030,0.5424,4306.7,4306.6,1.03414731]
[1757117453537,0.3084,4306.6,4306.2,1.20490435]
[1757117453837,0.4481,4306.7,4306.3,0.7913]
[1757117454037,0.3084,4306.6,4306.3,0.7913]
[1757117454237,0.1166,4306.5,4306.3,0.7913]
[1757117454625,0.3084,4306.4,4306.3,0.7913]
[1757117454832,0.7312,4306.4,4306.3,0.7913]
[1757117476054,0.3084,4306.3,4305.9,1.20490435]
[1757117476262,0.1166,4306.0,4305.9,1.20490435]
[1757117476545,0.425,4306.0,4305.9,1.20490435]
[1757117479154,0.3084,4306.0,4305.9,1.20490435]
[1757117480855,0.6289,4306.0,4305.9,1.20490435]
[1757117481458,0.6289,4306.0,4305.9,1.43890435]
[1757117487060,0.4319,4306.0,4305.9,1.43890435]
[1757117488262,0.6289,4306.0,4305.9,1.43890435]
[1757117495662,0.6289,4306.0,4305.9,1.20490435]
[1757117495867,0.6289,4306.0,4305.9,1.43890435]
[1757117496667,0.8323,4306.0,4305.9,1.43890435]
[1757117498963,0.8323,4306.0,4305.8,0.7914]
[1757117498964,0.7013,4305.9,4305.8,0.7914]
[1757117499165,1.27679898,4305.9,4305.8,1.0254]
[1757117502870,1.27679898,4305.9,4305.8,0.7914]
[1757117511773,1.07339898,4305.9,4305.8,1.99630435]
[1757117511980,0.3009,4305.9,4305.8,1.99630435]
[1757117513479,0.514,4305.9,4305.8,1.99630435]
[1757117515482,0.514,4305.9,4305.8,1.8261883]
[1757117515878,0.514,4305.9,4305.8,2.0601883]
[1757117516081,0.7195,4305.9,4305.8,2.0601883]
[1757117517373,0.514,4305.9,4305.8,2.0601883]
[1757117519182,1.08741956,4305.9,4305.8,2.0601883]
[1757117519784,0.87431956,4305.9,4305.8,2.0601883]
[1757117520581,0.3009,4305.9,4305.8,2.0601883]
[1757117521283,3.2078,4306.3,4305.8,7.0949766]
[1757117521489,3.2078,4306.3,4306.2,1.0347883]
[1757117521670,3.2078,4306.3,4306.2,1.2687883]
[1757117522078,0.2131,4306.9,4306.2,1.2687883]
[1757117522275,0.57357486,4306.8,4306.2,1.2687883]
[1757117522476,0.78667486,4306.7,4306.2,0.234]
[1757117522683,0.4186,4306.4,4306.3,1.2687883]
[1757117522878,0.7212,4306.4,4306.3,1.2687883]
[1757117523388,0.7212,4306.4,4306.3,1.8261883]
[1757117523577,1.29460726,4306.4,4306.3,0.7914]
[1757117524270,5.29460726,4306.4,4306.3,0.7914]
[1757117525382,5.29460726,4306.4,4306.3,0.1484]
[1757117525583,0.7212,4305.4,4305.3,1.7755883]
[1757117525785,0.7212,4305.4,4305.3,1.9886883]
[1757117527189,0.4186,4305.4,4305.3,1.9886883]
[1757117527691,0.2131,4305.4,4305.3,1.9886883]
[1757117540094,0.721,4305.4,4305.3,0.7199]
[1757117543693,0.4186,4305.4,4305.3,0.7199]
[1757117545499,3.2078,4306.3,4305.5,0.1271]
[1757117545702,4.45494441,4306.8,4306.7,0.4109]
[1757117545994,3.97726841,4306.8,4306.7,0.7158]
[1757117546302,4.27966841,4306.8,4306.7,0.7158]
[1757117546487,4.47346841,4306.8,4306.7,0.7158]
[1757117550095,4.70746841,4306.8,4306.7,0.7158]
[1757117550992,3.97726841,4306.8,4306.7,0.7158]
[1757117551902,4.27966841,4306.8,4306.7,0.7158]
[1757117552304,3.78116841,4306.8,4306.7,0.7158]
[1757117553707,3.2078,4306.8,4306.7,0.7158]
[1757117554803,0.00348355,4307.2,4307.1,0.7158]
[1757117555007,0.00348355,4307.2,4307.1,1.7505883]
[1757117557110,0.00348355,4307.2,4307.1,1.9835883]
[1757117558103,3.2078,4307.8,4307.1,5.6786883]
[1757117558304,3.2078,4307.8,4307.7,1.7505883]
[1757117561610,3.4039,4307.8,4307.7,1.7505883]
[1757117561809,3.7063,4307.8,4307.7,1.7505883]
[1757117562110,3.9001,4307.8,4307.7,1.7505883]
[1757117562414,3.9001,4307.8,4307.5,0.233]
[1757117562612,3.9001,4307.8,4307.6,0.3049]
[1757117562908,3.9001,4307.8,4307.7,0.1992]
[1757117563102,3.9001,4307.8,4307.7,0.5041]
[1757117563704,3.9001,4307.8,4307.7,0.3049]
[1757117564010,3.9001,4307.8,4307.5,0.233]
[1757117564206,0.3899,4307.5,4307.4,1.3396883]
[1757117564510,0.6923,4307.5,4307.4,1.3396883]
[1757117564804,0.5108,4307.5,4307.1,6.7106883]
[1757117565012,0.6923,4307.3,4307.2,0.7371]
[1757117566819,0.6923,4307.3,4307.2,0.233]
[1757117567222,0.3024,4307.2,4307.1,5.371]
[1757117567525,0.6923,4307.2,4307.1,5.371]
[1757117568219,0.6923,4307.2,4307.1,5.8751]
[1757117568624,0.6923,4307.2,4307.1,0.5041]
[1757117569425,3.2078,4307.3,4307.0,1.0347883]
[1757117569426,0.6907,4307.1,4307.0,1.0347883]
[1757117569626,0.6907,4307.1,4307.0,1.3519883]
[1757117569816,0.6907,4307.1,4307.0,1.5659883]
[1757117570630,0.6907,4307.1,4307.0,1.7624883]
[1757117572129,0.6907,4307.1,4307.0,1.8789883]
[1757117577637,0.6907,4307.1,4307.0,2.04878066]
[1757117578430,0.198,4307.1,4307.0,2.04878066]
[1757117578627,3.2078,4307.3,4307.1,0.3172]
[1757117578827,3.4058,4307.3,4307.2,0.7277]
[1757117579029,3.97457548,4307.3,4307.2,0.7277]
[1757117579224,4.27367548,4307.3,4307.2,0.7277]
[1757117579425,4.46727548,4307.3,4307.2,0.7277]
[1757117580822,0.1211,4309.5,4307.7,0.4105]
[1757117580823,3.2078,4307.8,4307.7,0.4105]
[1757117581030,3.2078,4307.8,4307.7,1.93228066]
[1757117581729,3.4058,4307.8,4307.7,1.93228066]
[1757117582030,3.7049,4307.8,4307.7,1.93228066]
[1757117582624,3.8985,4307.8,4307.7,1.93228066]
[1757117584234,3.4058,4307.8,4307.7,1.93228066]
[1757117586329,0.6907,4308.1,4308.0,0.527]
[1757117586630,1.26000123,4308.1,4308.0,0.8442]
[1757117588034,1.26000123,4308.1,4308.0,0.7277]
[1757117589426,0.3916,4308.1,4308.0,0.8442]
[1757117589630,0.198,4308.1,4308.0,0.8442]
[1757117590329,3.2078,4308.3,4308.1,0.3172]
[1757117590330,3.5069,4308.3,4308.1,0.3172]
[1757117590530,0.76712048,4308.2,4308.1,0.7277]
[1757117590734,0.76712048,4308.2,4308.1,1.93228066]
[1757117591130,0.56912048,4308.2,4308.1,1.93228066]
[1757117592030,0.76712048,4308.2,4308.1,1.93228066]
[1757117592229,0.198,4308.2,4308.1,1.93228066]
[1757117592623,0.4971,4308.2,4308.1,1.93228066]
[1757117594941,0.6907,4308.2,4308.1,1.93228066]
[1757117595237,0.6907,4308.2,4308.1,0.7277]
[1757117604334,1.25991543,4308.2,4308.1,0.7277]
[1757117606347,1.25991543,4308.2,4308.1,0.5312]
[1757117606549,1.25991543,4308.2,4308.1,0.7265]
[1757117610539,0.3079,4308.1,4307.8,0.233]
[1757117610743,0.7066,4307.9,4307.8,0.5443]
[1757117610944,1.27581543,4307.9,4307.8,0.5443]
[1757117611144,1.27581543,4307.9,4307.8,0.7493]
[1757117612154,1.27581543,4307.9,4307.8,0.9446]
[1757117612454,1.27581543,4307.9,4307.8,0.7116]
[1757117614952,1.27581543,4307.9,4307.8,0.5163]
[1757117615651,1.27581543,4307.9,4307.8,0.7116]
[1757117618049,1.27581543,4307.9,4307.8,0.9446]
[1757117619055,1.27581543,4307.9,4307.8,0.5443]
[1757117619852,1.27581543,4307.9,4307.8,0.7493]
[1757117620351,1.27581543,4307.9,4307.8,0.9446]
[1757117629370,1.27581543,4307.9,4307.8,0.7116]
[1757117629570,1.27581543,4307.9,4307.8,0.9446]
[1757117634282,1.20004543,4307.9,4307.6,5.371]
[1757117634581,0.7372,4307.7,4307.6,5.8753]
[1757117634782,1.30641543,4307.7,4307.6,5.8753]
[1757117637073,1.30641543,4307.7,4307.6,0.5043]
[1757117637481,1.30641543,4307.7,4307.6,1.5383575]
[1757117638282,1.30641543,4307.7,4307.6,1.7353575]
[1757117638783,0.98661543,4307.7,4307.6,1.7353575]
[1757117639283,1.30641543,4307.7,4307.6,1.7353575]
[1757117639887,0.98661543,4307.7,4307.6,1.7353575]
[1757117640384,1.30641543,4307.7,4307.6,1.7353575]
[1757117642290,0.98661543,4307.7,4307.6,1.7353575]
[1757117642589,0.77991543,4307.7,4307.6,1.7353575]
[1757117647589,0.56921543,4307.7,4307.6,1.7353575]
[1757117651093,0.98661543,4307.7,4307.6,1.7353575]
[1757117651279,0.98661543,4307.7,4307.5,5.371]
[1757117651484,1.30641543,4307.6,4307.5,5.9135]
[1757117651784,1.30641543,4307.6,4307.5,5.371]
[1757117652384,1.30641543,4307.6,4307.5,5.6805]
[1757117653896,1.30641543,4307.6,4307.5,5.8753]
[1757117654093,1.30641543,4307.6,4307.5,0.5043]
[1757117662192,0.1241,4307.5,4307.2,0.3089]
[1757117662391,0.1241,4307.5,4306.9,1.3429575]
[1757117662392,3.923,4307.3,4306.9,1.3429575]
[1757117662594,0.7152,4307.0,4306.9,1.5403575]
[1757117662791,1.28441543,4307.0,4306.9,1.7433575]
[1757117668199,1.28441543,4307.0,4306.9,0.7093]
[1757117668407,1.28441543,4307.0,4306.9,1.7433575]
[1757117681807,1.28441543,4307.0,4306.9,0.7093]
[1757117683610,1.40851543,4307.0,4306.6,0.3089]
[1757117683812,0.7152,4306.7,4306.6,0.7093]
[1757117684117,1.28441543,4306.7,4306.6,0.7093]
[1757117689806,1.28675516,4306.7,4306.6,0.7093]
[1757117695520,1.27675516,4306.7,4306.6,0.7093]
[1757117700925,3.2078,4307.3,4307.0,0.1171]
[1757117701131,3.2078,4307.3,4307.2,0.7199]
[1757117701317,3.77966469,4307.3,4307.2,0.7199]
[1757117701919,4.46556469,4307.3,4307.2,0.7199]
[1757117702221,4.46556469,4307.3,4307.2,0.5122]
[1757117702425,4.46556469,4307.3,4307.2,0.3019]
[1757117703021,4.46556469,4307.3,4307.2,0.5122]
[1757117703325,4.46556469,4307.3,4307.2,0.7199]
[1757117705722,1.25776469,4307.3,4307.2,0.7199]
[1757117707424,0.57186469,4307.3,4307.2,0.7199]
[1757117707627,0.2896,4307.7,4307.5,0.1171]
[1757117707824,0.4827,4307.7,4307.6,0.7199]
[1757117708123,1.25763405,4307.7,4307.6,0.7199]
[1757117712135,1.05443405,4307.7,4307.6,0.7199]
[1757117712633,1.25763405,4307.7,4307.6,0.7199]
[1757117716145,1.25763405,4307.7,4307.6,0.5122]
[1757117718145,1.25763405,4307.7,4307.6,0.5122]
[1757117721842,0.2951,4307.1,4306.6,0.3074]
[1757117722051,0.721,4306.7,4306.6,0.7157]
[1757117722941,0.721,4306.7,4306.6,1.9205686]
[1757117723245,0.721,4307.2,4307.1,0.7157]
[1757117723440,0.9974172,4307.2,4307.1,1.01431627]
[1757117723747,1.2925172,4307.2,4307.1,1.01431627]
[1757117726340,0.5715172,4307.2,4307.1,1.47948627]
[1757117726541,3.2078,4307.3,4307.2,0.7157]
[1757117726749,0.2951,4307.7,4307.2,0.7157]
[1757117726750,0.2117,4307.6,4307.5,0.1234]
[1757117727044,1.07844677,4307.6,4307.5,0.83031627]
[1757117727436,1.07844677,4307.6,4307.5,1.13771627]
[1757117728046,0.78334677,4307.6,4307.5,1.13771627]
[1757117728242,0.57164677,4307.6,4307.5,1.13771627]
[1757117728442,3.2078,4307.8,4307.7,0.4083]
[1757117728641,3.2078,4307.8,4307.7,2.45218487]
[1757117729343,0.2951,4308.3,4307.7,2.45218487]
[1757117729344,3.5029,4308.3,4307.7,2.14478487]
[1757117729542,1.29295326,4308.2,4308.1,0.1967]
[1757117729742,1.29295326,4308.2,4308.1,0.80271627]
[1757117730958,1.29295326,4308.2,4308.1,1.01431627]
[1757117732562,0.57195326,4308.2,4308.1,1.01431627]
[1757117732955,0.78365326,4308.2,4308.1,1.01431627]
[1757117733156,1.07835441,4308.2,4308.1,1.01431627]
[1757117733459,1.29255441,4308.2,4308.1,1.01431627]
[1757117733861,1.29255441,4308.2,4308.1,1.00778352]
[1757117734660,1.29255441,4308.2,4308.1,1.24078352]
[1757117734867,1.29255441,4308.2,4308.1,6.61178352]
[1757117735263,0.721,4308.2,4308.1,6.61178352]
[1757117742671,0.721,4308.2,4308.1,6.61156187]
[1757117744770,0.2117,4308.2,4308.1,6.61156187]
[1757117745072,3.2078,4308.8,4308.1,6.30416187]
[1757117745262,1.52408695,4308.7,4308.6,0.7157]
[1757117745762,1.29198694,4308.7,4308.6,0.7157]
[1757117746170,1.29198694,4308.7,4308.6,0.5041]
[1757117751175,1.29198694,4308.7,4308.6,0.3074]
[1757117751365,1.29198694,4308.7,4308.3,0.233]
[1757117751566,0.57098694,4308.6,4308.5,0.2031]
[1757117751768,1.27728694,4308.6,4308.5,0.5027]
[1757117751963,1.27728694,4308.6,4308.1,5.371]
[1757117752171,0.7063,4308.3,4308.2,0.7067]
[1757117752372,1.27728694,4308.3,4308.2,0.7067]
[1757117753174,1.27728694,4308.3,4308.2,0.99875593]
[1757117756071,0.78198694,4308.3,4308.2,0.99875593]
[1757117756470,1.08178694,4308.3,4308.2,0.99875593]
[1757117756776,1.27728694,4308.3,4308.2,0.99875593]
[1757117756984,1.27728694,4308.3,4308.2,0.99912667]
[1757117758375,1.27728694,4308.3,4308.2,0.59202667]
[1757117758779,1.27728694,4308.3,4307.8,5.371]
[1757117758780,4.48508694,4308.3,4307.8,5.371]
[1757117758978,0.1919,4307.9,4307.8,5.371]
[1757117759275,1.16938694,4307.9,4307.8,5.6706]
[1757117759483,1.16938694,4307.9,4307.8,5.8737]
[1757117759874,0.97748694,4307.9,4307.8,5.8737]
[1757117760075,0.78198694,4307.9,4307.8,6.0777]
[1757117761478,0.78198694,4307.9,4307.8,0.7067]
[1757117762380,0.57098694,4307.9,4307.8,0.7067]
[1757117768380,0.78198694,4307.9,4307.8,0.7067]
[1757117770481,0.97748694,4307.9,4307.8,0.7067]
[1757117770986,1.16938694,4307.9,4307.8,0.5027]
[1757117771482,0.97748694,4307.9,4307.8,0.5027]
[1757117772186,0.97748694,4307.9,4307.8,0.7067]
[1757117782987,0.78198694,4307.9,4307.8,0.7067]
[1757117783188,3.2078,4308.3,4307.8,7.53063449]
[1757117783390,0.1201,4309.5,4307.8,7.53063449]
[1757117783391,3.2078,4308.9,4308.8,0.2898]
[1757117783589,3.2078,4308.9,4308.8,2.01792382]
[1757117784890,0.1201,4309.5,4308.8,1.72812382]
[1757117785089,0.5242,4309.1,4309.0,0.6934]
[1757117785296,0.5242,4309.1,4309.0,1.84774285]
[1757117786495,0.5242,4309.1,4309.0,1.72764285]
[1757117789095,0.3198,4309.1,4309.0,1.84774285]
[1757117789303,0.2044,4309.2,4309.1,0.2898]
[1757117789492,0.5242,4309.2,4309.1,0.6934]
[1757117790103,0.7283,4309.2,4309.1,0.6934]
[1757117790403,0.4085,4308.5,4308.4,0.19918355]
[1757117790693,0.8457,4308.5,4308.4,0.00348355]
[1757117791299,0.8457,4308.5,4308.4,0.19918355]
[1757117792898,0.8457,4308.5,4308.4,0.00348355]
[1757117793405,1.0787,4308.5,4308.4,0.00348355]
[1757117793997,5.0787,4308.5,4308.4,0.00348355]
[1757117795295,5.63847389,4308.5,4308.4,0.00348355]
[1757117799507,1.63847389,4308.5,4308.4,0.00348355]
[1757117802609,0.7283,4307.2,4307.1,3.2078]
[1757117802803,0.4085,4306.7,4306.6,3.4035]
[1757117803004,0.7283,4306.7,4306.6,3.9012]
[1757117804011,0.7283,4306.7,4306.6,0.6934]
[1757117804305,0.2044,4306.7,4306.6,1.24214285]
[1757117804512,0.5242,4306.7,4306.6,1.43784285]
[1757117805011,0.5242,4306.7,4306.6,1.72764285]
[1757117805806,3.4408,4306.9,4306.6,1.72764285]
[1757117806112,3.732,4306.9,4306.8,1.72764285]
[1757117807006,3.9361,4306.9,4306.8,1.72764285]
[1757117808902,3.9361,4306.9,4306.8,0.6934]
[1757117809810,3.9361,4306.9,4306.8,0.1957]
[1757117818923,3.9361,4306.9,4306.8,0.5128]
[1757117820627,0.7224,4306.8,4306.7,0.2106]
[1757117823828,0.7224,4306.8,4306.7,0.7357]
[1757117826430,1.28330268,4306.8,4306.7,0.7357]
[1757117828234,3.2078,4307.4,4307.3,0.4186]
[1757117828431,3.2078,4308.0,4307.5,0.1274]
[1757117828731,3.2078,4308.0,4307.9,0.7357]
[1757117828936,3.2078,4308.0,4307.9,0.9687]
[1757117829123,0.3098,4308.4,4308.0,0.1274]
[1757117829322,0.5225,4308.4,4308.3,0.7357]
[1757117829526,1.28372008,4308.4,4308.3,0.7357]
[1757117830135,0.7224,4308.4,4308.3,0.7357]
[1757117830723,3.2078,4308.6,4308.3,1.62333633]
[1757117830932,3.2078,4309.4,4309.2,0.7357]
[1757117831129,0.1246,4310.0,4309.2,0.7357]
[1757117831130,0.5225,4309.5,4309.4,0.7357]
[1757117831742,0.7224,4309.5,4309.4,0.7357]
[1757117832134,0.7224,4309.5,4309.3,1.20473633]
[1757117832135,0.847,4309.5,4309.3,1.20473633]
[1757117832334,0.5372,4309.5,4309.3,1.20473633]
[1757117832640,0.7224,4309.4,4309.3,1.41533633]
[1757117833445,0.7224,4309.4,4309.3,1.94043633]
[1757117834635,0.7224,4309.4,4309.3,1.20473633]
[1757117834939,0.6471,4309.0,4308.9,1.94043633]
[1757117835242,0.7224,4309.0,4308.9,2.17343633]
[1757117835632,0.5372,4309.0,4308.6,1.20473633]
[1757117835832,0.1246,4308.5,4308.4,1.20473633]
[1757117836038,0.1246,4309.0,4308.4,2.17343633]
[1757117836339,0.847,4309.0,4308.9,1.94043633]
[1757117838740,0.4114,4308.3,4308.2,0.2023]
[1757117839041,0.1224,4307.5,4307.4,3.5042]
[1757117839233,0.8384,4307.5,4307.4,3.4101]
[1757117839741,0.8384,4307.5,4307.4,3.2078]
[1757117839950,0.716,4307.3,4307.2,1.43773633]
[1757117840144,0.716,4307.3,4307.2,1.64003633]
[1757117840348,0.716,4307.3,4307.2,1.93643633]
[1757117840538,0.716,4307.3,4307.2,2.13013633]